bitfinex-derivatives/quotes_ETHF0:USTF0_20250518
["timestamp","ask_amount","ask_price","bid_price","bid_amount"]
[1747557096493,0.79225,2523.6,2523.5,0.5337]
[1747557097790,18.13425,2523.6,2523.5,0.5337]
[1747557102096,18.13425,2523.6,2523.5,0.65755149]
[1747557103594,18.13425,2523.6,2523.5,0.65755322]
[1747557105798,21.34205,2523.6,2523.5,0.65755322]
[1747557106698,26.34205,2523.6,2523.5,0.65755322]
[1747557107292,26.34205,2523.6,2523.5,0.65756192]
[1747557108100,0.79253,2522.7,2522.6,3.2078]
[1747557108401,8.725,2523.0,2522.5,0.79259]
[1747557108602,0.79253,2522.7,2522.6,1.3132]
[1747557109903,0.79265,2522.4,2522.2,6.30708]
[1747557110098,0.79261,2522.5,2522.3,2.10584]
[1747557110704,1.2847,2522.6,2522.3,1.3132]
[1747557110906,1.0968,2523.0,2522.3,1.3132]
[1747557111199,9.51844,2523.0,2522.8,0.79249]
[1747557111399,8.726,2523.0,2522.9,2.09807]
[1747557111791,9.51844,2523.0,2522.9,1.3056]
[1747557111996,8.726,2523.0,2522.9,2.09807]
[1747557112194,9.51844,2523.0,2522.9,1.3056]
[1747557112398,3.2078,2523.1,2522.9,1.3056]
[1747557112597,8.618,2523.3,2522.9,1.3056]
[1747557112793,0.79238,2523.2,2523.0,3.15543]
[1747557112993,5.50885804,2523.6,2523.1,1.3056]
[1747557112994,3.2078,2523.6,2523.1,1.3056]
[1747557113201,0.79238,2523.2,2523.1,1.3056]
[1747557113406,0.79238,2523.2,2523.1,2.09801]
[1747557113708,0.79233,2523.4,2523.1,6.3056]
[1747557114000,0.79235,2523.3,2523.2,2.07986]
[1747557114199,0.79233,2523.4,2523.2,2.07986]
[1747557114400,0.79233,2523.4,2523.3,1.2875]
[1747557114808,0.79233,2523.4,2523.3,2.07985]
[1747557115108,0.79233,2523.4,2523.3,1.2875]
[1747557115603,0.79233,2523.4,2523.3,2.07985]
[1747557115905,0.79226,2523.6,2523.3,1.2875]
[1747557116309,3.2078,2523.9,2523.4,3.2078]
[1747557116509,0.79221,2523.8,2523.6,0.79223]
[1747557116705,0.79221,2523.8,2523.7,2.4404]
[1747557117503,0.79221,2523.8,2522.9,4.00025]
[1747557117504,1.98056,2523.7,2522.9,4.00025]
[1747557117708,0.7924,2523.2,2523.0,1.91712]
[1747557117913,3.2078,2523.5,2523.0,1.1247]
[1747557118211,0.79239,2523.2,2523.0,1.91714]
[1747557118405,3.2078,2523.5,2523.0,1.91714]
[1747557118406,3.2078,2523.5,2523.0,1.1247]
[1747557118608,0.79239,2523.2,2523.0,1.1247]
[1747557118811,0.79239,2523.2,2523.1,1.2694]
[1747557119415,3.2078,2523.5,2523.1,6.2694]
[1747557119607,0.79232,2523.4,2523.3,0.79234]
[1747557120213,0.79232,2523.4,2523.3,0.9161806]
[1747557120411,0.79225,2523.7,2523.3,1.4307406]
[1747557120608,0.79225,2523.7,2523.5,0.79226]
[1747557120813,0.79225,2523.7,2523.6,1.43073479]
[1747557121014,0.79225,2523.7,2523.6,3.40888479]
[1747557121407,0.79225,2523.7,2523.6,2.61663479]
[1747557121606,0.79225,2523.7,2523.6,3.40888479]
[1747557121807,0.79225,2523.7,2523.6,2.61663479]
[1747557122103,0.79225,2523.7,2523.6,2.61662607]
[1747557122307,9.4092,2523.8,2523.6,3.40885607]
[1747557122509,9.4092,2523.8,2523.7,1.3069]
[1747557122726,0.79218,2523.9,2523.7,2.09912]
[1747557123116,0.79218,2523.9,2523.8,1.2471]
[1747557124310,2.02698,2523.9,2523.8,1.2471]
[1747557125613,2.02698,2523.9,2523.6,1.1859]
[1747557125614,0.79222,2523.7,2523.6,1.1859]
[1747557125816,0.79222,2523.7,2523.6,2.4501]
[1747557126617,0.79222,2523.8,2523.6,3.24234]
[1747557126816,0.79222,2523.8,2523.7,1.2642]
[1747557127006,3.2078,2524.0,2523.7,1.2642]
[1747557127211,3.2078,2524.0,2523.7,2.05641]
[1747557127407,0.79216,2523.9,2523.7,2.05641]
[1747557127614,0.79216,2523.9,2523.8,1.2642]
[1747557130120,2.15106,2523.9,2523.8,1.2642]
[1747557130417,0.79222,2523.7,2523.6,1.1859]
[1747557130620,0.79222,2523.7,2523.6,2.4382]
[1747557131119,0.7922,2523.8,2523.7,0.79222]
[1747557131411,1.3589,2523.9,2523.6,2.4382]
[1747557131617,3.2078,2524.0,2523.7,2.1425]
[1747557131816,0.79216,2523.9,2523.8,1.3503]
[1747557132814,2.11896,2523.9,2523.8,1.3503]
[1747557135019,2.11896,2523.9,2523.8,2.14249]
[1747557135319,0.79222,2523.7,2523.6,1.1859]
[1747557136619,0.79222,2523.7,2523.6,1.97815]
[1747557136819,0.79218,2523.9,2523.6,1.1859]
[1747557137021,0.79218,2523.9,2523.8,0.79217]
[1747557138421,0.79219,2523.8,2523.7,2.14411]
[1747557139021,0.79222,2523.7,2523.6,1.1859]
[1747557140320,0.79222,2523.7,2523.6,1.97815]
[1747557140622,0.79222,2523.7,2523.6,1.1859]
[1747557141118,0.79225,2523.6,2523.5,4.4593]
[1747557141520,0.79225,2523.6,2523.5,3.2078]
[1747557142020,0.79228,2523.5,2523.4,1.0843]
[1747557142224,0.79235,2523.3,2523.2,3.2078]
[1747557144119,1.2921,2523.4,2523.2,3.2078]
[1747557144327,1.98028,2524.1,2523.3,1.2909]
[1747557144619,0.79222,2523.7,2523.6,0.79223]
[1747557144827,0.7922,2523.8,2523.7,0.79221]
[1747557145019,1.3604,2523.9,2523.6,1.2909]
[1747557145425,0.79222,2523.7,2523.6,2.08313]
[1747557145616,0.79221,2523.8,2523.7,0.79221]
[1747557146023,2.15257,2523.9,2523.8,0.79219]
[1747557147924,0.79222,2523.7,2523.6,1.2909]
[1747557148528,0.79225,2523.6,2523.5,4.00007]
[1747557148728,1.3067,2523.6,2523.5,4.00007]
[1747557148928,1.3067,2523.6,2523.5,5.34827]
[1747557149728,2.09895,2523.6,2523.5,4.556]
[1747557150030,2.09895,2523.6,2523.5,3.2078]
[1747557151528,1.3067,2523.6,2523.5,4.00008]
[1747557152429,2.09895,2523.6,2523.5,3.2078]
[1747557152929,1.3067,2523.6,2523.5,5.36048]
[1747557153130,2.09895,2523.6,2523.5,4.5682]
[1747557154831,2.09895,2523.6,2523.5,3.2078]
[1747557156233,2.09895,2523.6,2523.5,3.33163342]
[1747557156936,2.09895,2523.6,2523.5,3.33163485]
[1747557157432,2.09895,2523.6,2523.5,3.3316357]
[1747557158227,2.09895,2523.6,2523.5,3.2078]
[1747557158433,2.09895,2523.6,2523.5,3.33163403]
[1747557159434,0.79223,2523.7,2523.5,4.12389403]
[1747557159634,0.79223,2523.7,2523.6,1.43023403]
[1747557160546,0.79223,2523.7,2523.6,0.12383403]
[1747557160844,1.97463,2523.7,2523.6,0.12383403]
[1747557161343,0.79225,2523.6,2523.5,3.2078]
[1747557161644,3.32225,2523.6,2523.5,3.33163799]
[1747557163147,3.32225,2523.6,2523.5,0.12383799]
[1747557165149,11.93125,2523.6,2523.5,0.12383799]
[1747557165344,1.3612,2523.6,2523.5,0.91611686]
[1747557165550,0.79223,2523.7,2523.6,0.79225]
[1747557165749,1.2872,2524.1,2523.7,0.79219]
[1747557166049,0.79217,2523.9,2523.8,0.12383686]
[1747557166245,0.79217,2523.9,2523.8,1.45013686]
[1747557166950,0.79217,2523.9,2523.8,1.45012111]
[1747557168551,1.2872,2524.1,2523.8,4.65792111]
[1747557168753,0.79198,2524.5,2523.8,4.5341]
[1747557169051,1.2481,2524.6,2524.4,3.2078]
[1747557169351,2.04004,2524.6,2524.5,0.1237917]
[1747557170852,0.79197,2524.5,2524.4,3.2078]
[1747557171044,2.03287,2524.5,2524.4,3.33157872]
[1747557172451,2.03287,2524.5,2524.4,3.33157899]
[1747557174248,2.03287,2524.5,2524.4,3.33158082]
[1747557174552,2.03287,2524.5,2524.4,3.33157961]
[1747557174942,1.2409,2524.5,2524.4,3.33157961]
[1747557175146,1.2409,2524.5,2524.4,4.12357961]
[1747557175449,2.03287,2524.5,2524.4,0.12377961]
[1747557176050,1.2409,2524.5,2524.4,0.91577961]
[1747557176346,2.03287,2524.5,2524.4,0.12377961]
[1747557176650,10.62587,2524.5,2524.4,0.12377961]
[1747557177844,0.792,2524.4,2524.3,1.3628]
[1747557178050,2.11,2524.4,2524.3,1.48659266]
[1747557179650,2.11,2524.4,2524.3,0.12379611]
[1747557180046,3.23,2524.4,2524.3,0.12379611]
[1747557180949,8.23,2524.4,2524.3,0.12379611]
[1747557181353,0.79213,2524.0,2523.9,1.1946]
[1747557181651,0.79213,2524.0,2523.9,1.31841279]
[1747557181945,0.79213,2524.0,2523.9,2.65731279]
[1747557182145,2.07573,2524.0,2523.9,2.65731279]
[1747557183151,2.07573,2524.0,2523.9,2.65731244]
[1747557183345,2.07573,2524.0,2523.9,1.31841244]
[1747557183545,2.07573,2524.0,2523.9,0.12381244]
[1747557184056,7.07573,2524.0,2523.9,2.44e-06]
[1747557184257,0.79238,2523.2,2523.1,3.5795]
[1747557184451,0.79238,2523.2,2523.1,2.391]
[1747557184656,0.79241,2523.1,2523.0,3.2078]
[1747557184853,2.03391,2523.1,2523.0,3.2078]
[1747557186058,10.62591,2523.1,2523.0,3.2078]
[1747557187863,9.38441,2523.1,2523.0,3.2078]
[1747557189157,0.79241,2523.1,2523.0,3.2078]
[1747557189355,2.07271,2523.1,2523.0,3.2078]
[1747557191658,0.79241,2523.1,2523.0,3.2078]
[1747557191862,9.38641,2523.1,2523.0,3.2078]
[1747557192560,0.79241,2523.1,2523.0,3.2078]
[1747557192767,0.79241,2523.1,2523.0,4.00024]
[1747557193063,0.79241,2523.1,2523.0,4.4476]
[1747557193461,0.79239,2523.2,2523.0,4.4476]
[1747557193660,0.79239,2523.2,2523.1,1.92419]
[1747557193859,0.79239,2523.2,2523.1,1.1318]
[1747557196162,0.79239,2523.2,2523.1,1.2556424]
[1747557198467,0.79239,2523.2,2523.1,1.25564142]
[1747557199169,0.79239,2523.2,2523.1,1.25564461]
[1747557200073,0.79239,2523.2,2523.1,1.2556456]
[1747557200564,0.79239,2523.2,2523.1,0.1238456]
[1747557201170,1.93489,2523.2,2523.1,0.1238456]
[1747557202059,1.93489,2523.2,2523.0,4.4476]
[1747557202060,0.79241,2523.1,2523.0,4.4476]
[1747557202265,2.11481,2523.1,2523.0,4.57145388]
[1747557202472,2.11481,2523.1,2523.0,3.33165388]
[1747557205973,2.11481,2523.1,2523.0,3.33165412]
[1747557208571,10.68681,2523.1,2523.0,3.33165412]
[1747557210982,10.68681,2523.1,2523.0,3.33166672]
[1747557211178,10.68681,2523.1,2523.0,3.2078]
[1747557211380,10.68681,2523.1,2523.0,3.33166722]
[1747557211879,10.68681,2523.1,2523.0,0.12386722]
[1747557213580,0.79253,2522.7,2522.6,4.527]
[1747557213775,9.36853,2522.7,2522.6,4.527]
[1747557216380,9.36853,2522.7,2522.6,3.2078]
[1747557217175,0.79253,2522.7,2522.6,3.2078]
[1747557217379,0.79253,2522.7,2522.6,5.7207]
[1747557217579,0.79253,2522.7,2522.6,6.51326]
[1747557217779,8.577,2523.0,2522.6,5.7207]
[1747557217971,0.79244,2523.0,2522.9,3.2078]
[1747557218374,0.79244,2523.0,2522.9,4.554]
[1747557222083,9.8518,2523.2,2522.9,4.554]
[1747557222389,0.79244,2523.0,2522.9,5.34645]
[1747557222589,0.79244,2523.0,2522.9,4.554]
[1747557223588,0.79244,2523.0,2522.9,5.34647]
[1747557225189,1.98066,2523.6,2522.9,4.554]
[1747557225488,0.79225,2523.6,2523.5,3.2078]
[1747557225690,0.79225,2523.6,2523.4,0.7923]
[1747557225691,0.79236,2523.3,2523.2,3.2078]
[1747557226382,0.79236,2523.3,2523.2,4.4998]
[1747557226790,0.79236,2523.3,2523.2,5.29218]
[1747557227892,0.79236,2523.3,2523.2,4.4998]
[1747557228088,0.79236,2523.3,2523.2,5.29218]
[1747557228293,0.79236,2523.3,2523.2,6.44657947]
[1747557228491,0.79236,2523.3,2523.2,5.65419947]
[1747557228893,0.79236,2523.3,2523.2,2.44639947]
[1747557229092,0.79236,2523.3,2523.2,1.15439947]
[1747557229894,0.79238,2523.2,2523.1,1.2734]
[1747557230990,8.575,2524.2,2523.3,1.98087]
[1747557231192,2.04896,2524.2,2524.1,3.2078]
[1747557232801,0.79206,2524.2,2524.1,3.2078]
[1747557233894,1.64694226,2524.3,2524.1,3.99988]
[1747557234093,2.43897226,2524.3,2524.2,1.3182]
[1747557234698,1.64694226,2524.3,2524.2,1.3182]
[1747557235002,0.79187,2524.9,2524.6,0.79192]
[1747557235192,2.76820072,2524.8,2524.7,5.618]
[1747557235695,1.97633072,2524.8,2524.7,46.418]
[1747557236005,6.58752396,2525.3,2525.2,0.79175]
[1747557236299,7.37924396,2525.3,2525.2,3.2078]
[1747557236498,4.74413634,2525.3,2525.2,3.2078]
[1747557236898,4.74413634,2525.3,2525.2,3.33167583]
[1747557237098,3.95241634,2525.3,2525.2,3.33167583]
[1747557237401,3.95241634,2525.3,2525.2,4.12342583]
[1747557238003,3.26930743,2526.1,2525.5,0.79165]
[1747557238204,0.7915,2526.0,2525.9,3.2078]
[1747557238505,2.0292,2526.0,2525.9,3.2078]
[1747557239605,10.5782,2526.0,2525.9,3.2078]
[1747557239809,0.79159,2525.7,2525.6,6.6732]
[1747557240206,0.7917,2525.4,2525.2,3.99953]
[1747557240700,1.2377,2525.6,2525.3,1.2815]
[1747557240905,10.52530743,2526.1,2525.3,1.2815]
[1747557240906,0.79161,2525.7,2525.5,3.99945]
[1747557241107,1.98030743,2526.1,2525.5,3.99945]
[1747557241108,0.79158,2525.8,2525.6,2.07312]
[1747557241302,10.52730743,2526.1,2525.7,1.3014]
[1747557241512,1.98030743,2526.1,2525.8,3.2078]
[1747557241811,2.265,2526.6,2525.9,1.42509596]
[1747557242104,0.79137,2526.4,2526.3,3.2078]
[1747557246806,1.97877,2526.0,2525.4,0.12369773]
[1747557247012,0.79162,2525.6,2525.5,3.2078]
[1747557247211,10.52296,2525.8,2525.2,40.8]
[1747557247510,0.79172,2525.3,2525.2,40.8]
[1747557247906,17.078,2525.4,2524.8,3.2078]
[1747557248114,0.79184,2524.9,2524.8,3.2078]
[1747557248311,0.79183,2525.0,2524.8,4.12340454]
[1747557248503,0.79175,2525.2,2525.0,0.79181]
[1747557248804,0.79173,2525.3,2525.1,5.26557]
[1747557249010,0.79173,2525.3,2525.2,1.266]
[1747557249509,0.79173,2525.3,2525.2,0.12373559]
[1747557249710,0.79172,2525.3,2525.2,0.1237381]
[1747557250510,0.79172,2525.3,2525.2,1.4810381]
[1747557251515,0.79172,2525.3,2525.2,0.1237381]
[1747557252013,0.79175,2525.2,2525.1,3.2078]
[1747557252206,0.79175,2525.2,2525.1,3.33154197]
[1747557253811,0.79175,2525.2,2525.1,3.33154354]
[1747557254118,0.79175,2525.2,2525.1,3.2078]
[1747557257206,0.79175,2525.2,2525.1,3.33154883]
[1747557257706,0.79175,2525.2,2525.1,3.33154583]
[1747557257915,2.03295,2525.2,2525.1,3.33154583]
[1747557258415,2.03295,2525.2,2525.1,3.33154638]
[1747557258612,2.03295,2525.2,2525.1,3.33154636]
[1747557260521,3.12585,2525.2,2525.1,3.33154636]
[1747557261517,3.12585,2525.2,2525.1,3.33155463]
[1747557261713,3.12585,2525.2,2525.1,0.12375463]
[1747557261908,3.12585,2525.2,2524.6,3.2078]
[1747557261909,0.79191,2524.7,2524.6,3.2078]
[1747557262712,3.2078,2525.8,2525.2,0.79173]
[1747557262917,0.79151,2526.0,2525.6,3.2078]
[1747557263215,0.79136,2526.5,2525.9,3.2078]
[1747557263418,1.3535,2526.4,2526.2,3.2078]
[1747557263616,2.14489,2526.4,2526.3,1.3182]
[1747557264117,0.7914,2526.3,2526.2,3.2078]
[1747557264312,2.1449,2526.3,2526.2,3.2078]
[1747557264514,1.1122,2526.6,2526.2,3.2078]
[1747557264713,8.544,2526.6,2526.3,1.3182]
[1747557265018,0.79137,2526.4,2526.3,1.3182]
[1747557265816,2.14486,2526.5,2526.3,1.3182]
[1747557266118,0.79137,2526.4,2526.3,1.3182]
[1747557267619,0.79153,2525.9,2525.8,1.1671041]
[1747557268119,0.79153,2525.9,2525.8,2.4524041]
[1747557268914,0.7915,2526.0,2525.8,2.4524041]
[1747557269119,0.7915,2526.0,2525.8,3.2439641]
[1747557269418,35.145,2526.8,2526.3,0.7914]
[1747557269612,0.79136,2526.5,2526.4,1.3133]
[1747557269809,0.79132,2526.6,2526.4,2.10466]
[1747557270419,0.79134,2526.5,2526.4,1.3133]
[1747557270715,0.79128,2526.7,2526.5,0.79133]
[1747557270918,0.79128,2526.7,2526.6,1.3133]
[1747557272011,8.521,2526.9,2526.6,1.3133]
[1747557272212,0.7912,2527.0,2526.8,3.99903]
[1747557272716,0.7912,2527.0,2526.9,1.2921]
[1747557273220,12.84108,2527.3,2526.5,1.0486]
[1747557273221,1.97786,2527.2,2526.5,1.0486]
[1747557273410,0.79131,2526.6,2526.5,1.0486]
[1747557274421,0.79137,2526.4,2526.3,3.2078]
[1747557274625,0.79137,2526.4,2526.3,4.4999]
[1747557274825,3.2485,2526.9,2526.3,4.4999]
[1747557274826,1.2704,2526.9,2526.3,4.4999]
[1747557275020,11.7685,2526.9,2526.3,5.2913]
[1747557275216,0.79137,2526.4,2526.3,4.4999]
[1747557275412,1.2704,2526.9,2526.4,0.79136]
[1747557275618,0.79134,2526.6,2526.5,1.3088]
[1747557275921,1.2704,2526.9,2526.5,1.3088]
[1747557276120,0.79131,2526.6,2526.5,1.3088]
[1747557278625,0.79131,2526.6,2526.3,3.2078]
[1747557278626,0.79137,2526.4,2526.3,3.2078]
[1747557279317,0.79137,2526.4,2526.3,3.99921]
[1747557279523,8.519,2526.8,2526.3,3.99919]
[1747557279722,0.79137,2526.4,2526.3,3.99919]
[1747557280023,0.79136,2526.5,2526.3,3.99919]
[1747557280226,0.79136,2526.5,2526.4,2.05017]
[1747557280525,0.79136,2526.5,2526.4,1.2588]
[1747557281026,0.79147,2526.1,2526.0,3.2078]
[1747557281330,0.79153,2525.9,2525.8,1.9586641]
[1747557281624,0.79148,2526.1,2525.8,1.1671041]
[1747557281927,0.79145,2526.2,2526.0,3.99927]
[1747557282227,1.3232,2526.4,2526.0,3.2078]
[1747557282527,0.79136,2526.5,2526.0,5.18655]
[1747557282722,1.3232,2526.6,2526.4,0.79137]
[1747557283226,9.8432,2526.9,2526.5,0.79134]
[1747557283424,0.79123,2526.9,2526.7,0.79126]
[1747557283628,1.3232,2527.1,2526.8,0.79124]
[1747557284028,0.79122,2526.9,2526.8,0.79124]
[1747557284323,0.79122,2526.9,2526.7,3.99906]
[1747557284726,0.7912,2527.0,2526.7,3.99906]
[1747557284929,0.7912,2527.0,2526.8,0.79124]
[1747557285227,0.7912,2527.0,2526.8,0.79123]
[1747557285620,3.2078,2527.2,2527.1,0.79116]
[1747557285826,0.7907,2528.6,2527.8,0.79094]
[1747557286022,1.3111,2528.6,2527.8,3.99874]
[1747557286220,1.3111,2528.4,2527.8,56.36274]
[1747557286421,1.3111,2528.4,2527.8,47.85674]
[1747557286615,1.3111,2528.4,2527.8,47.0658]
[1747557286817,1.3111,2528.4,2528.2,3.2078]
[1747557287023,2.4386,2528.4,2527.8,47.0658]
[1747557287222,9.5991,2528.3,2527.8,44.0078]
[1747557287526,1.3024,2528.2,2527.8,44.0078]
[1747557287714,1.3024,2528.2,2527.8,3.2078]
[1747557288120,2.09323,2528.2,2527.8,3.2078]
[1747557288331,1.3024,2528.2,2527.8,3.2078]
[1747557288527,2.09323,2528.2,2527.9,0.12360977]
[1747557288729,0.79086,2528.1,2527.8,3.2078]
[1747557288932,1.3024,2528.0,2527.8,3.2078]
[1747557289123,0.79103,2527.5,2527.4,3.2078]
[1747557289325,11.7118,2527.9,2527.3,0.79107]
[1747557289326,0.79096,2527.8,2527.3,0.79107]
[1747557289531,1.3024,2527.4,2527.3,0.79107]
[1747557289733,9.576,2527.8,2527.3,0.1236421]
[1747557290030,1.2794,2527.7,2527.5,3.99882]
[1747557290521,1.2794,2527.7,2527.6,0.12362989]
[1747557290721,1.2794,2527.7,2527.6,0.91462989]
[1747557291333,1.2794,2527.7,2527.6,0.12362989]
[1747557291539,1.2794,2527.7,2527.6,0.91462989]
[1747557292230,8.517,2528.2,2528.1,0.79084]
[1747557292424,1.0528,2528.4,2528.2,0.79081]
[1747557292824,3.2078,2528.5,2528.4,0.79075]
[1747557293021,9.5698,2528.9,2528.4,0.12359422]
[1747557293229,0.00522955,2529.0,2528.8,0.7906]
[1747557293426,0.00522955,2529.0,2528.9,0.79059]
[1747557293621,1.29302955,2529.0,2528.9,0.79059]
[1747557293828,1.29302955,2529.0,2528.9,0.91415988]
[1747557294225,0.00522955,2529.0,2528.9,0.91415988]
[1747557294531,1.29302955,2529.0,2528.9,0.91415988]
[1747557294729,1.29302955,2529.0,2528.9,0.12356988]
[1747557294930,0.79065,2528.8,2528.5,0.7907]
[1747557295231,1.2878,2528.7,2528.6,0.91426032]
[1747557295529,13.78626,2528.7,2528.3,3.2078]
[1747557295741,0.79078,2528.3,2528.1,1.93295812]
[1747557296038,0.79078,2528.3,2527.9,1.1671041]
[1747557296039,0.79087,2528.0,2527.9,1.1671041]
[1747557296336,0.79087,2528.0,2527.9,1.29071353]
[1747557296630,0.79086,2528.1,2527.9,1.1671041]
[1747557296835,2.14597,2528.0,2527.9,1.1671041]
[1747557297438,1.3551,2528.0,2527.8,0.79093]
[1747557297734,1.3551,2528.0,2527.9,0.79091]
[1747557297930,0.79091,2527.9,2527.7,3.99875]
[1747557298137,2.14604,2527.8,2527.7,3.2078]
[1747557298330,0.79102,2527.6,2527.3,3.2078]
[1747557298531,3.2078,2528.1,2527.4,0.12363105]
[1747557298731,3.95206,2529.5,2528.0,3.2078]
[1747557298732,1.1139,2528.6,2528.0,3.2078]
[1747557298933,2.14587,2528.4,2528.1,0.91445105]
[1747557299134,1.3551,2528.4,2528.3,3.99858]
[1747557299341,1.3551,2528.4,2528.3,4.12217852]
[1747557300144,9.28967,2528.7,2528.3,3.33139852]
[1747557300335,10.59057,2528.7,2528.4,1.36249852]
[1747557300535,0.79071,2528.6,2528.4,2.02965]
[1747557300831,1.89526,2528.8,2528.6,0.79069]
[1747557301038,1.1046,2528.8,2528.7,0.79067]
[1747557301238,1.11912955,2529.0,2528.9,0.7906]
[1747557301239,0.00522955,2529.0,2528.9,0.7906]
[1747557302144,0.00522955,2529.0,2528.9,3.9984]
[1747557302346,0.00522955,2529.0,2528.9,3.2078]
[1747557302543,0.00522955,2529.0,2528.6,3.2078]
[1747557302837,10.47967955,2529.0,2528.3,3.99858]
[1747557303041,0.79075,2528.5,2528.4,0.12358141]
[1747557303233,2.4224,2528.9,2528.6,0.79067]
[1747557303438,10.9214,2528.9,2528.4,1.3662]
[1747557303636,0.79065,2528.8,2528.6,0.79069]
[1747557303836,2.10527,2528.7,2528.6,1.3662]
[1747557304040,1.3146,2528.7,2528.3,3.2078]
[1747557304240,1.3146,2528.7,2528.4,40.9235844]
[1747557304442,2.10528,2528.7,2528.4,40.8]
[1747557304642,1.3146,2528.7,2528.5,0.12358266]
[1747557304842,1.3146,2528.7,2528.6,0.7907]
[1747557305038,1.3146,2528.7,2528.4,40.8]
[1747557305242,0.79091,2528.0,2527.8,3.99874]
[1747557305543,0.79087,2528.1,2527.9,0.91451989]
[1747557305742,0.7908,2528.3,2528.1,0.79085]
[1747557306045,0.79082,2528.2,2528.1,4.4558]
[1747557306238,0.79082,2528.2,2528.1,0.12359966]
[1747557306444,0.79092,2527.9,2527.8,3.2078]
[1747557306644,0.79092,2527.9,2527.8,3.33140666]
[1747557307033,1.3398,2528.1,2527.8,3.33140666]
[1747557307237,1.3398,2528.1,2527.9,0.1236109]
[1747557307238,0.7909,2528.0,2527.9,0.1236109]
[1747557307546,1.0625,2528.2,2527.9,0.1236109]
[1747557307752,10.62856,2528.4,2528.2,0.79081]
[1747557307935,0.79082,2528.2,2528.1,3.2078]
[1747557308138,0.79082,2528.2,2528.1,0.12359618]
[1747557308632,8.498,2528.3,2528.1,0.12359618]
[1747557308840,1.3133,2528.2,2528.1,0.79086]
[1747557309038,1.3133,2528.2,2528.1,0.9144617]
[1747557309644,1.3133,2528.2,2528.1,0.91445896]
[1747557310443,0.79082,2528.2,2528.1,0.12359896]
[1747557310952,1.3133,2528.3,2527.9,0.7909]
[1747557311248,2.09217,2528.1,2528.0,0.12361315]
[1747557311845,0.79092,2527.9,2527.8,4.5328]
[1747557312039,0.79092,2527.9,2527.8,4.65641413]
[1747557312346,0.79092,2527.9,2527.8,5.44735413]
[1747557312844,0.79092,2527.9,2527.8,5.44735478]
[1747557313045,0.79092,2527.9,2527.8,4.65641478]
[1747557313247,0.79091,2528.0,2527.8,5.44734478]
[1747557313446,2.09222,2527.9,2527.8,3.2078]
[1747557313647,2.09222,2527.9,2527.8,3.33141669]
[1747557313840,1.3013,2527.9,2527.8,3.33141669]
[1747557314050,1.3013,2527.9,2527.8,4.12236669]
[1747557314547,0.79773847,2528.1,2527.9,0.7909]
[1747557314750,2.04293847,2528.1,2528.0,0.12361669]
[1747557315552,0.79101,2527.6,2527.5,3.2078]
[1747557315850,9.28901,2527.6,2527.5,3.2078]
[1747557316051,0.79101,2527.6,2527.5,3.2078]
[1747557316347,1.2452,2527.8,2527.5,3.2078]
[1747557316545,0.79101,2527.6,2527.5,3.2078]
[1747557317449,9.51105847,2528.1,2527.6,0.79101]
[1747557317754,0.79095,2527.8,2527.7,1.3082]
[1747557318155,0.79094,2527.9,2527.8,0.79094]
[1747557318349,0.79094,2527.9,2527.7,2.09915]
[1747557318546,0.79095,2527.8,2527.7,2.09915]
[1747557319458,0.79094,2527.9,2527.7,1.3082]
[1747557319753,2.06181,2528.0,2527.8,3.99873]
[1747557319953,0.79092,2527.9,2527.8,3.2078]
[1747557320157,2.06492,2527.9,2527.8,3.2078]
[1747557320459,0.7909,2528.0,2527.8,3.2078]
[1747557320643,0.79092,2527.9,2527.8,3.2078]
[1747557321351,1.274,2528.0,2527.8,3.99875]
[1747557321656,0.79092,2527.9,2527.8,3.99875]
[1747557321859,0.00685847,2528.1,2528.0,0.79089]
[1747557323147,0.00685847,2528.1,2527.8,3.2078]
[1747557323352,0.79773847,2528.1,2528.0,0.79089]
[1747557323755,0.00685847,2528.1,2528.0,0.79089]
[1747557323951,0.79771847,2528.1,2527.8,4.5501]
[1747557324249,0.79095,2527.8,2527.5,8.545]
[1747557324455,0.79095,2527.8,2527.7,0.79097]
[1747557324655,2.33575847,2528.1,2527.6,2.1333]
[1747557324656,0.79098,2527.7,2527.6,2.1333]
[1747557325046,0.79097,2527.8,2527.7,0.79098]
[1747557325242,0.79095,2527.8,2527.7,0.79098]
[1747557326154,0.79095,2527.8,2527.6,2.13329]
[1747557326349,1.2453,2527.7,2527.6,2.13329]
[1747557326955,0.79095,2527.9,2527.8,0.79095]
[1747557327154,1.2453,2528.0,2527.9,0.79091]
[1747557327359,0.79093,2527.9,2527.8,2.12694]
[1747557327657,1.2453,2528.0,2527.9,0.79092]
[1747557327851,0.79095,2527.8,2527.7,3.2078]
[1747557328052,0.79104,2527.6,2527.5,1.336]
[1747557328255,0.79104,2527.5,2527.4,3.99887]
[1747557328760,0.79104,2527.5,2527.4,3.2078]
[1747557329168,1.2453,2527.7,2527.4,3.2078]
[1747557329361,2.0363,2527.7,2527.4,4.5297]
[1747557329556,0.79102,2527.6,2527.4,4.5297]
[1747557329767,0.79104,2527.5,2527.4,5.32076]
[1747557329971,0.79104,2527.5,2527.4,4.5297]
[1747557330168,0.79104,2527.5,2527.4,3.2078]
[1747557331070,0.79102,2527.6,2527.4,3.2078]
[1747557331367,1.0947,2527.8,2527.4,3.2078]
[1747557331564,0.79104,2527.6,2527.5,1.3219]
[1747557331770,1.2872,2527.7,2527.5,2.11293]
[1747557332070,0.79101,2527.6,2527.5,2.11293]
[1747557332674,1.2872,2527.7,2527.6,0.79101]
[1747557333372,1.88567,2527.8,2527.7,0.79098]
[1747557333670,1.2369,2528.0,2527.7,3.2078]